fUST/lending_fUST_20240621
["ID","MTS","AMOUNT","RATE_DAILY","PERIOD"]
[330040724,1718957442994,-503.68745547,0.00052136,120]
[330040725,1718957443003,-500.0,0.00052136,120]
[330040726,1718957443013,-508.60580619,0.00052136,120]
[330040727,1718957443022,-500.0,0.00052136,120]
[330040728,1718957443032,-500.0,0.00052136,120]
[330040729,1718957443041,-500.0,0.00052136,120]
[330040730,1718957443050,-500.0,0.00052136,120]
[330040731,1718957443059,-2000.0,0.00052136,5]
[330040732,1718957443070,-500.0,0.00052136,120]
[330040733,1718957443081,-500.0,0.00052136,120]
[330040734,1718957443091,-500.0,0.00052136,120]
[330040735,1718957443107,-1715.14,0.00052136,120]
[330040737,1718957443117,-500.0,0.00052136,120]
[330040738,1718957443126,-1117.09,0.00052136,120]
[330040739,1718957443135,-500.0,0.00052136,120]
[330040740,1718957443146,-533.49,0.00052136,120]
[330040741,1718957443155,-504.62581708,0.00052136,120]
[330040742,1718957443165,-500.0,0.00052136,120]
[330040743,1718957443174,-504.81003501,0.00052136,120]
[330040744,1718957443185,-500.0,0.00052136,120]
[330040745,1718957443194,-500.0,0.00052136,120]
[330040746,1718957443204,-500.0,0.00052136,120]
[330040747,1718957443213,-500.0,0.00052136,120]
[330040748,1718957443222,-500.0,0.00052136,120]
[330040749,1718957443231,-500.0,0.00052136,120]
[330040750,1718957443240,-500.0,0.00052136,30]
[330040751,1718957443250,-500.0,0.00052136,120]
[330040752,1718957443259,-178.65397086,0.00052136,7]
[330040753,1718957443269,-594.01,0.00052136,120]
[330040754,1718957443278,-517.98,0.00052136,120]
[330040755,1718957443289,-244.83329614,0.00052136,120]
[330040756,1718957443299,-500.0,0.00052136,120]
[330040757,1718957443309,-500.0,0.00052136,120]
[330040758,1718957443321,-2705.16,0.00052136,120]
[330040759,1718957443331,-9757.06,0.00052136,120]
[330040760,1718957443341,-500.0,0.00052136,120]
[330040761,1718957443350,-29926.51,0.00052136,120]
[330040762,1718957443360,-500.0,0.00052136,120]
[330040763,1718957443370,-759.38,0.00052136,120]
[330040764,1718957443379,-1224.43,0.00052136,120]
[330040765,1718957443389,-2819.56,0.00052136,21]
[330040766,1718957443398,-500.0,0.00052136,120]
[330040767,1718957443409,-500.0,0.00052136,120]
[330040768,1718957443419,-500.0,0.00052136,120]
[330040769,1718957443429,-1080.16,0.00052136,120]
[330040771,1718957443438,-750.38,0.00052136,120]
[330040773,1718957443448,-584.99134489,0.00052136,120]
[330040775,1718957443458,-946.39,0.00052136,120]
[330040777,1718957443468,-5577.54,0.00052136,120]
[330040779,1718957443477,-500.0,0.00052136,120]
[330040780,1718957443487,-500.0,0.00052136,120]
[330040781,1718957443496,-637.18,0.00052136,120]
[330040782,1718957443506,-500.0,0.00052136,120]
[330040783,1718957443515,-628.84927997,0.00052136,120]
[330040784,1718957443524,-500.0,0.00052136,120]
[330040785,1718957443534,-500.0,0.00052136,120]
[330040786,1718957443543,-1843.54,0.00052136,120]
[330040787,1718957443553,-250.0,0.00052136,120]
[330040788,1718957443562,-1396.0,0.00052136,120]
[330040789,1718957443573,-940.53,0.00052136,120]
[330040790,1718957443582,-500.0,0.00052136,120]
[330040791,1718957443591,-500.0,0.00052136,120]
[330040792,1718957443600,-500.0,0.00052136,120]
[330040793,1718957443609,-500.0,0.00052136,120]
[330040794,1718957443619,-939.7,0.00052136,120]
[330040795,1718957443628,-500.0,0.00052136,120]
[330040796,1718957443638,-500.0,0.00052136,120]
[330040797,1718957443647,-1134.82,0.00052136,120]
[330040798,1718957443656,-3818.01,0.00052136,120]
[330040799,1718957443667,-1678.55,0.00052136,120]
[330040800,1718957443676,-500.0,0.00052136,120]
[330040801,1718957443685,-500.0,0.00052136,120]
[330040802,1718957443694,-947.19,0.00052136,120]
[330040803,1718957443703,-513.18659974,0.00052136,120]
[330040804,1718957443712,-500.0,0.00052136,120]
[330040805,1718957443722,-500.0,0.00052136,120]
[330040806,1718957443731,-5656.24,0.00052136,120]
[330040807,1718957443740,-500.82084915,0.00052136,120]
[330040808,1718957443749,-467.5,0.00052136,120]
[330040809,1718957443758,-500.0,0.00052136,120]
[330040810,1718957443768,-500.0,0.00052136,120]
[330040811,1718957443777,-162.05568589,0.00052136,120]
[330040812,1718957443787,-447.40388469,0.00052136,120]
[330040813,1718957443796,-500.0,0.00052136,120]
[330040814,1718957443806,-858.78,0.00052136,120]
[330040815,1718957443816,-500.0,0.00052136,120]
[330040816,1718957443827,-517.79,0.00052136,120]
[330040817,1718957443835,-1339.42,0.00052136,120]
[330040818,1718957443845,-611.18,0.00052136,120]
[330040819,1718957443855,-1588.08,0.00052136,120]
[330040820,1718957443865,-500.0,0.00052136,120]
[330040821,1718957443874,-500.0,0.00052136,120]
[330040822,1718957443884,-1274.65,0.00052136,120]
[330040823,1718957443893,-500.0,0.00052136,120]
[330040824,1718957443902,-500.0,0.00052136,120]
[330040825,1718957443911,-498.64728639,0.00052136,120]
[330040826,1718957443921,-500.0,0.00052136,120]
[330040827,1718957443930,-1102.76,0.00052136,120]
[330040828,1718957444005,-586.94,0.00052136,120]
[330040829,1718957444016,-155.13224447,0.00052155,60]
[330040830,1718957444026,-154.24002067,0.00052165,60]
[330040831,1718957444036,-155.13224447,0.00052194,60]
[330040832,1718957444045,-500.0,0.00052218,20]
[330040833,1718957444054,-500.0,0.00052218,120]
[330040834,1718957444063,-500.0,0.00052218,120]
[330040835,1718957444075,-1046.87,0.00052218,120]
[330040836,1718957444084,-500.0,0.00052219,120]
[330040837,1718957444099,-1058.05,0.00052219,120]
[330040838,1718957444109,-500.0,0.00052219,120]
[330040839,1718957444118,-500.0,0.00052219,120]
[330040840,1718957444127,-500.0,0.00052219,120]
[330040841,1718957444138,-1050.75,0.00052219,120]
[330040842,1718957444147,-500.0,0.00052219,120]
[330040843,1718957444156,-474.87524319,0.00052219,120]
[330040844,1718957444166,-500.0,0.00052219,120]
[330040845,1718957444178,-2245.27,0.00052219,120]
[330040846,1718957444188,-500.0,0.00052219,120]
[330040847,1718957444197,-500.0,0.00052219,120]
[330040848,1718957444207,-500.0,0.00052219,120]
[330040849,1718957444216,-509.61255725,0.00052219,120]
[330040850,1718957444226,-500.0,0.00052219,120]
[330040851,1718957444236,-500.0,0.00052219,120]
[330040852,1718957444245,-500.0,0.00052219,120]
[330040853,1718957444256,-500.0,0.00052219,120]
[330040854,1718957444265,-500.0,0.00052219,120]
[330040855,1718957444274,-500.0,0.00052219,2]
[330040856,1718957444283,-689.47,0.00052219,120]
[330040857,1718957444292,-500.0,0.00052219,120]
[330040858,1718957444301,-500.0,0.00052219,120]
[330040859,1718957444311,-500.0,0.00052219,120]
[330040860,1718957444322,-500.0,0.00052219,120]
[330040861,1718957444331,-527.78,0.00052219,120]
[330040862,1718957444341,-500.0,0.00052219,120]
[330040863,1718957444350,-1626.42,0.00052219,120]
[330040864,1718957444359,-534.12327592,0.00052219,120]
[330040865,1718957444368,-1702.0,0.00052219,120]
[330040866,1718957444377,-541.44,0.00052219,120]
[330040867,1718957444387,-500.0,0.00052219,120]
[330040868,1718957444396,-500.0,0.00052219,120]
[330040869,1718957444405,-500.0,0.00052219,120]
[330040870,1718957444414,-500.0,0.00052219,120]
[330040871,1718957444423,-500.0,0.00052219,7]
[330040872,1718957444433,-500.0,0.00052219,120]
[330040873,1718957444442,-500.0,0.00052219,120]
[330040874,1718957444451,-590.73,0.00052219,120]
[330040875,1718957444460,-810.4,0.00052219,120]
[330040876,1718957444470,-500.0,0.00052219,120]
[330040877,1718957444479,-500.0,0.00052219,120]
[330040878,1718957444491,-953.78,0.00052219,120]
[330040879,1718957444500,-554.52,0.00052219,120]
[330040880,1718957444511,-500.0,0.00052219,120]
[330040881,1718957444520,-1026.53,0.00052219,120]
[330040882,1718957444530,-500.0,0.00052219,120]
[330040883,1718957444541,-507.15178591,0.00052219,120]
[330040884,1718957444551,-500.0,0.00052219,120]
[330040885,1718957444560,-991.32,0.00052219,120]
[330040886,1718957444571,-500.0,0.00052219,120]
[330040887,1718957444580,-500.0,0.00052219,120]
[330040888,1718957444590,-500.0,0.00052219,120]
[330040889,1718957444599,-258.07840905,0.00052219,120]
[330040890,1718957444608,-500.0,0.00052219,120]
[330040891,1718957444617,-1146.25,0.00052219,120]
[330040892,1718957444627,-500.0,0.00052219,120]
[330040893,1718957444637,-500.0,0.00052219,120]
[330040894,1718957444647,-685.32,0.00052219,120]
[330040895,1718957444657,-500.0,0.00052219,120]
[330040896,1718957444667,-500.0,0.00052219,120]
[330040897,1718957444675,-500.0,0.00052219,120]
[330040898,1718957444685,-500.0,0.00052219,120]
[330040899,1718957444694,-500.0,0.00052219,120]
[330040900,1718957444703,-500.0,0.00052219,120]
[330040901,1718957444712,-768.82,0.00052219,120]
[330040902,1718957444721,-500.0,0.00052219,120]
[330040903,1718957444730,-500.0,0.00052219,120]
[330040904,1718957444739,-1060.2157547,0.00052219,120]
[330040905,1718957445471,-96.2742453,0.00052219,120]
[330040906,1718957445481,-500.0,0.00052219,120]
[330040907,1718957445491,-500.0,0.00052219,120]
[330040908,1718957445501,-500.0,0.00052219,120]
[330040909,1718957445510,-541.07,0.00052219,120]
[330040910,1718957445519,-500.0,0.00052219,120]
[330040911,1718957445529,-500.0,0.00052219,120]
[330040912,1718957445538,-500.0,0.00052219,120]
[330040913,1718957445548,-500.0,0.00052219,120]
[330040914,1718957445557,-500.0,0.00052219,120]
[330040915,1718957445566,-500.0,0.00052219,120]
[330040916,1718957445577,-500.0,0.00052219,120]
[330040917,1718957445587,-500.0,0.00052219,120]
[330040919,1718957445597,-500.0,0.00052219,120]
[330040921,1718957445606,-500.0,0.00052219,120]
[330040922,1718957445616,-2000.0,0.00052219,5]
[330040924,1718957445625,-500.0,0.00052219,120]
[330040925,1718957445634,-500.0,0.00052219,120]
[330040926,1718957445644,-1715.14,0.00052219,120]
[330040927,1718957445654,-500.0,0.00052219,120]
[330040928,1718957445663,-1117.09,0.00052219,120]
[330040929,1718957445673,-500.0,0.00052219,120]
[330040930,1718957445682,-533.49,0.00052219,120]
[330040931,1718957445691,-497.84900524,0.00052219,120]
[330040932,1718957445700,-500.0,0.00052219,120]
[330040933,1718957445709,-500.0,0.00052219,120]
[330040934,1718957445718,-500.0,0.00052219,120]
[330040935,1718957445728,-189.02474437,0.00052219,120]
[330040937,1718957445737,-500.0,0.00052219,120]
[330040938,1718957445746,-500.0,0.00052219,120]
[330040939,1718957445756,-500.0,0.00052219,120]
[330040940,1718957445765,-594.01,0.00052219,120]
[330040941,1718957445774,-517.98,0.00052219,120]
[330040942,1718957445783,-500.0,0.00052219,120]
[330040944,1718957445792,-500.0,0.00052219,120]
[330040946,1718957445802,-9757.06,0.00052219,120]
[330040948,1718957445811,-29926.51,0.00052219,120]
[330040949,1718957445821,-2705.16,0.00052219,120]
[330040950,1718957445830,-759.38,0.00052219,120]
[330040951,1718957445839,-1224.43,0.00052219,120]
[330040952,1718957445848,-2819.56,0.00052219,21]
[330040953,1718957445858,-500.0,0.00052219,120]
[330040954,1718957445867,-1080.16,0.00052219,120]
[330040955,1718957445876,-750.38,0.00052219,120]
[330040956,1718957445886,-946.39,0.00052219,120]
[330040957,1718957445895,-5577.54,0.00052219,120]
[330040958,1718957445904,-500.0,0.00052219,120]
[330040959,1718957445913,-637.18,0.00052219,120]
[330040960,1718957445922,-500.0,0.00052219,120]
[330040961,1718957445931,-500.0,0.00052219,120]
[330040962,1718957445940,-500.0,0.00052219,120]
[330040963,1718957445949,-1843.54,0.00052219,120]
[330040964,1718957445959,-250.0,0.00052219,120]
[330040965,1718957445968,-1396.0,0.00052219,120]
[330040967,1718957445977,-940.53,0.00052219,120]
[330040968,1718957445986,-500.0,0.00052219,120]
[330040970,1718957445995,-183.07878719,0.00052219,120]
[330040971,1718957446004,-500.0,0.00052219,120]
[330040972,1718957446013,-500.0,0.00052219,120]
[330040973,1718957446022,-939.7,0.00052219,120]
[330040974,1718957446032,-500.0,0.00052219,120]
[330040975,1718957446042,-500.0,0.00052219,120]
[330040976,1718957446052,-1134.82,0.00052219,120]
[330040977,1718957446061,-3818.01,0.00052219,120]
[330040978,1718957446071,-1678.55,0.00052219,120]
[330040979,1718957446080,-505.92601737,0.00052219,120]
[330040980,1718957446090,-500.0,0.00052219,120]
[330040981,1718957446103,-947.19,0.00052219,120]
[330040982,1718957446112,-500.0,0.00052219,120]
[330040983,1718957446121,-5656.24,0.00052219,120]
[330040984,1718957446130,-500.0,0.00052219,120]
[330040985,1718957446141,-500.0,0.00052219,120]
[330040986,1718957446150,-858.78,0.00052219,120]
[330040987,1718957446159,-500.0,0.00052219,120]
[330040988,1718957446169,-517.79,0.00052219,120]
[330040989,1718957446179,-1339.42,0.00052219,120]
[330040990,1718957446188,-611.18,0.00052219,120]
[330040991,1718957446198,-1588.08,0.00052219,120]
[330040992,1718957446208,-500.0,0.00052219,120]
[330040993,1718957446217,-500.0,0.00052219,120]
[330040994,1718957446227,-1274.65,0.00052219,120]
[330040995,1718957446237,-500.0,0.00052219,120]
[330040996,1718957446246,-500.0,0.00052219,120]
[330040997,1718957446255,-500.0,0.00052219,120]
[330040998,1718957446265,-1102.76,0.00052219,120]
[330040999,1718957446275,-586.94,0.00052219,120]
[330041000,1718957446284,-615.01,0.000523,120]
[330041001,1718957446294,-500.0,0.00052301,120]
[330041002,1718957446304,-1058.05,0.00052301,120]
[330041003,1718957446313,-500.0,0.00052301,120]
[330041004,1718957446324,-500.0,0.00052301,120]
[330041005,1718957446333,-500.0,0.00052301,120]
[330041006,1718957446342,-1050.75,0.00052301,120]
[330041007,1718957446351,-500.0,0.00052301,120]
[330041008,1718957446364,-2245.27,0.00052301,120]
[330041009,1718957446374,-518.73471386,0.00052301,120]
[330041010,1718957446383,-500.0,0.00052301,120]
[330041011,1718957446393,-500.0,0.00052301,120]
[330041012,1718957446402,-500.0,0.00052301,120]
[330041013,1718957446412,-500.0,0.00052301,120]
[330041014,1718957446487,-500.0,0.00052301,120]
[330041015,1718957446496,-500.0,0.00052301,120]
[330041016,1718957446506,-500.0,0.00052301,2]
[330041017,1718957446515,-689.47,0.00052301,120]
[330041018,1718957446524,-500.0,0.00052301,120]
[330041019,1718957446534,-546.4577894,0.00052301,120]
[330041020,1718957446544,-500.0,0.00052301,120]
[330041021,1718957446553,-527.78,0.00052301,120]
[330041022,1718957446562,-1626.42,0.00052301,120]
[330041023,1718957446573,-1702.0,0.00052301,120]
[330041024,1718957446582,-541.44,0.00052301,120]
[330041025,1718957446592,-500.0,0.00052301,120]
[330041026,1718957446602,-512.73530036,0.00052301,120]
[330041027,1718957446611,-458.50498546,0.00052301,120]
[330041028,1718957446621,-500.0,0.00052301,7]
[330041029,1718957446631,-500.0,0.00052301,120]
[330041030,1718957446640,-500.0,0.00052301,120]
[330041031,1718957446649,-590.73,0.00052301,120]
[330041032,1718957446659,-810.4,0.00052301,120]
[330041033,1718957446668,-500.0,0.00052301,120]
[330041034,1718957446677,-500.0,0.00052301,120]
[330041035,1718957446686,-953.78,0.00052301,120]
[330041036,1718957446696,-554.52,0.00052301,120]
[330041037,1718957446706,-500.0,0.00052301,120]
[330041038,1718957446715,-1026.53,0.00052301,120]
[330041039,1718957446725,-500.0,0.00052301,120]
[330041040,1718957446734,-991.32,0.00052301,120]
[330041041,1718957446744,-500.0,0.00052301,120]
[330041042,1718957446753,-500.0,0.00052301,120]
[330041043,1718957446762,-1146.25,0.00052301,120]
[330041044,1718957446771,-500.0,0.00052301,120]
[330041045,1718957446781,-500.0,0.00052301,120]
[330041046,1718957446790,-685.32,0.00052301,120]
[330041047,1718957446799,-500.0,0.00052301,120]
[330041048,1718957446808,-500.0,0.00052301,120]
[330041049,1718957446817,-500.0,0.00052301,120]
[330041050,1718957446833,-500.0,0.00052301,120]
[330041051,1718957446842,-500.0,0.00052301,120]
[330041052,1718957446851,-500.0,0.00052301,120]
[330041053,1718957446860,-768.82,0.00052301,120]
[330041054,1718957446870,-500.0,0.00052301,120]
[330041055,1718957446879,-500.0,0.00052301,120]
[330041056,1718957446888,-1156.49,0.00052301,120]
[330041057,1718957446898,-500.0,0.00052301,120]
[330041058,1718957446907,-500.0,0.00052301,120]
[330041059,1718957446918,-500.0,0.00052301,120]
[330041060,1718957446928,-541.07,0.00052301,120]
[330041061,1718957446938,-500.0,0.00052301,120]
[330041062,1718957446947,-500.0,0.00052301,120]
[330041063,1718957446957,-500.0,0.00052301,120]
[330041064,1718957446967,-533.73860227,0.00052301,120]
[330041065,1718957446976,-500.0,0.00052301,120]
[330041066,1718957446986,-500.0,0.00052301,120]
[330041067,1718957446995,-500.0,0.00052301,120]
[330041068,1718957447004,-500.0,0.00052301,120]
[330041069,1718957447014,-500.0,0.00052301,120]
[330041070,1718957447023,-500.0,0.00052301,120]
[330041071,1718957447032,-2000.0,0.00052301,5]
[330041072,1718957447053,-500.0,0.00052301,120]
[330041073,1718957447070,-1715.14,0.00052301,120]
[330041074,1718957447088,-500.0,0.00052301,120]
[330041075,1718957447110,-1117.09,0.00052301,120]
[330041076,1718957447126,-533.49,0.00052301,120]
[330041077,1718957447146,-500.0,0.00052301,120]
[330041078,1718957447161,-500.0,0.00052301,120]
[330041079,1718957447177,-151.22532682,0.00052301,120]
[330041080,1718957447194,-500.0,0.00052301,120]
[330041081,1718957447208,-500.0,0.00052301,120]
[330041082,1718957447222,-500.0,0.00052301,120]
[330041083,1718957447237,-594.01,0.00052301,120]
[330041084,1718957447253,-517.98,0.00052301,120]
[330041085,1718957447271,-500.0,0.00052301,120]
[330041086,1718957447285,-9757.06,0.00052301,120]
[330041087,1718957447296,-29926.51,0.00052301,120]
[330041088,1718957447312,-2705.16,0.00052301,120]
[330041089,1718957447329,-759.38,0.00052301,120]
[330041090,1718957447342,-1224.43,0.00052301,120]
[330041091,1718957447357,-2819.56,0.00052301,21]
[330041092,1718957447368,-500.0,0.00052301,120]
[330041093,1718957447381,-1080.16,0.00052301,120]
[330041094,1718957447395,-750.38,0.00052301,120]
[330041095,1718957447408,-946.39,0.00052301,120]
[330041096,1718957447421,-5577.54,0.00052301,120]
[330041097,1718957447435,-500.0,0.00052301,120]
[330041098,1718957447449,-637.18,0.00052301,120]
[330041099,1718957447464,-500.0,0.00052301,120]
[330041100,1718957447477,-500.0,0.00052301,120]
[330041101,1718957447490,-1843.54,0.00052301,120]
[330041102,1718957447504,-250.0,0.00052301,120]
[330041103,1718957447518,-1396.0,0.00052301,120]
[330041104,1718957447531,-940.53,0.00052301,120]
[330041105,1718957447545,-500.0,0.00052301,120]
[330041106,1718957447559,-500.0,0.00052301,120]
[330041107,1718957447573,-500.0,0.00052301,120]
[330041108,1718957447587,-939.7,0.00052301,120]
[330041109,1718957447600,-500.0,0.00052301,120]
[330041110,1718957447614,-500.0,0.00052301,120]
[330041111,1718957447628,-1134.82,0.00052301,120]
[330041112,1718957447641,-3818.01,0.00052301,120]
[330041113,1718957447651,-1678.55,0.00052301,120]
[330041114,1718957447660,-500.0,0.00052301,120]
[330041115,1718957447670,-947.19,0.00052301,120]
[330041116,1718957447680,-500.0,0.00052301,120]
[330041117,1718957447689,-5656.24,0.00052301,120]
[330041118,1718957447699,-500.0,0.00052301,120]
[330041119,1718957447708,-500.0,0.00052301,120]
[330041120,1718957447718,-858.78,0.00052301,120]
[330041121,1718957447727,-500.0,0.00052301,120]
[330041122,1718957447737,-517.79,0.00052301,120]
[330041123,1718957447747,-1339.42,0.00052301,120]
[330041124,1718957447756,-611.18,0.00052301,120]
[330041125,1718957447766,-1588.08,0.00052301,120]
[330041126,1718957447914,-500.0,0.00052301,120]
[330041127,1718957447927,-500.0,0.00052301,120]
[330041128,1718957447937,-1274.65,0.00052301,120]
[330041129,1718957447946,-500.0,0.00052301,120]
[330041130,1718957447956,-500.0,0.00052301,120]
[330041131,1718957447965,-500.0,0.00052301,120]
[330041132,1718957447975,-1102.76,0.00052301,120]
[330041133,1718957447984,-586.94,0.00052301,120]
[330041134,1718957447993,-1046.87,0.00052382,120]
[330041135,1718957448003,-500.0,0.00052383,120]
[330041136,1718957448012,-1058.05,0.00052383,120]
[330041137,1718957448021,-500.0,0.00052383,120]
[330041138,1718957448030,-500.0,0.00052383,120]
[330041139,1718957448040,-500.0,0.00052383,120]
[330041140,1718957448049,-1050.75,0.00052383,120]
[330041141,1718957448058,-500.0,0.00052383,120]
[330041142,1718957448068,-2245.27,0.00052383,120]
[330041143,1718957448078,-500.0,0.00052383,120]
[330041144,1718957448088,-500.0,0.00052383,120]
[330041145,1718957448100,-500.0,0.00052383,120]
[330041146,1718957448110,-500.0,0.00052383,120]
[330041147,1718957448120,-500.0,0.00052383,120]
[330041148,1718957448129,-500.0,0.00052383,120]
[330041149,1718957448139,-500.0,0.00052383,2]
[330041150,1718957448148,-689.47,0.00052383,120]
[330041151,1718957448158,-500.0,0.00052383,120]
[330041152,1718957448167,-500.0,0.00052383,120]
[330041153,1718957448178,-527.78,0.00052383,120]
[330041154,1718957448187,-1626.42,0.00052383,120]
[330041155,1718957448197,-1702.0,0.00052383,120]
[330041156,1718957448206,-541.44,0.00052383,120]
[330041157,1718957448215,-500.0,0.00052383,120]
[330041158,1718957448224,-500.0,0.00052383,7]
[330041159,1718957448233,-500.0,0.00052383,120]
[330041160,1718957448242,-500.0,0.00052383,120]
[330041161,1718957448251,-590.73,0.00052383,120]
[330041162,1718957448260,-810.4,0.00052383,120]
[330041163,1718957448270,-500.0,0.00052383,120]
[330041164,1718957448279,-500.0,0.00052383,120]
[330041165,1718957448288,-953.78,0.00052383,120]
[330041166,1718957448298,-554.52,0.00052383,120]
[330041167,1718957448307,-500.0,0.00052383,120]
[330041168,1718957448317,-1026.53,0.00052383,120]
[330041169,1718957448327,-500.0,0.00052383,120]
[330041170,1718957448336,-991.32,0.00052383,120]
[330041171,1718957448346,-500.0,0.00052383,120]
[330041172,1718957448355,-500.0,0.00052383,120]
[330041173,1718957448364,-1146.25,0.00052383,120]
[330041174,1718957448373,-500.0,0.00052383,120]
[330041175,1718957448382,-500.0,0.00052383,120]
[330041176,1718957448390,-685.32,0.00052383,120]
[330041177,1718957448400,-500.0,0.00052383,120]
[330041178,1718957448409,-500.0,0.00052383,120]
[330041179,1718957448418,-500.0,0.00052383,120]
[330041180,1718957448427,-500.0,0.00052383,120]
[330041181,1718957448436,-500.0,0.00052383,120]
[330041182,1718957448446,-500.0,0.00052383,120]
[330041183,1718957448455,-768.82,0.00052383,120]
[330041184,1718957448464,-500.0,0.00052383,120]
[330041185,1718957448474,-1156.49,0.00052383,120]
[330041186,1718957448483,-500.0,0.00052383,120]
[330041187,1718957448493,-500.0,0.00052383,120]
[330041188,1718957448502,-445.45244995,0.00052383,120]
[330041189,1718957448514,-541.07,0.00052383,120]
[330041190,1718957448523,-500.0,0.00052383,120]
[330041191,1718957448532,-374.21606266,0.00052383,120]
[330041192,1718957448542,-500.0,0.00052383,120]
[330041193,1718957448552,-500.0,0.00052383,120]
[330041194,1718957448561,-500.0,0.00052383,120]
[330041195,1718957448572,-500.0,0.00052383,120]
[330041196,1718957448581,-500.0,0.00052383,120]
[330041197,1718957448590,-500.0,0.00052383,120]
[330041198,1718957448600,-2000.0,0.00052383,5]
[330041199,1718957448609,-500.0,0.00052383,120]
[330041200,1718957448618,-1715.14,0.00052383,120]
[330041201,1718957448627,-500.0,0.00052383,120]
[330041202,1718957448636,-1117.09,0.00052383,120]
[330041203,1718957448646,-533.49,0.00052383,120]
[330041204,1718957448655,-289.08448552,0.00052383,120]
[330041205,1718957448675,-621.17403756,0.00052054,120]
[330041206,1718957448687,-2737.01596244,0.00052054,120]
[330041207,1718957448696,-210.91551448,0.00052383,120]
[330041208,1718957448705,-500.0,0.00052383,120]
[330041209,1718957448715,-157.67218065,0.00052383,120]
[330041210,1718957448724,-500.0,0.00052383,120]
[330041211,1718957448733,-500.0,0.00052383,120]
[330041212,1718957448742,-434.50861096,0.00052383,120]
[330041213,1718957448889,-347.29,0.00052054,120]
[330041214,1718957448985,-3010.9,0.00052054,120]
[330041215,1718957448995,-400.75924419,0.00052054,120]
[330041216,1718957449051,-590.49803625,0.00052054,120]
[330041217,1718957449355,-943.59271956,0.00052054,120]
[330041218,1718957449368,-2091.37833745,0.00052054,120]
[330041219,1718957451189,-1266.81166255,0.00052054,120]
[330041220,1718957451199,-3358.19,0.00052054,120]
[330041221,1718957451209,-3358.19,0.00052054,120]
[330041222,1718957451218,-3358.19,0.00052135,120]
[330041223,1718957451227,-3358.19,0.00052135,120]
[330041224,1718957451236,-3358.19,0.00052135,120]
[330041225,1718957451246,-1217.23833746,0.00052136,120]
[330041226,1718957451258,-717.61166254,0.00052136,120]
[330041227,1718957451267,-3521.11,0.00052209,3]
[330041228,1718957451277,-3358.19,0.00052218,120]
[330041229,1718957451286,-3358.19,0.00052218,120]
[330041230,1718957451295,-3358.19,0.00052218,120]
[330041231,1718957451305,-1934.85,0.00052219,120]
[330041232,1718957451314,-3358.19,0.000523,120]
[330041233,1718957451325,-3358.19,0.000523,120]
[330041234,1718957451334,-3358.19,0.000523,120]
[330041235,1718957451343,-1934.85,0.00052301,120]
[330041236,1718957451352,-3358.19,0.00052382,120]
[330041237,1718957451361,-3358.19,0.00052382,120]
[330041238,1718957451370,-3358.19,0.00052382,120]